fUSD/lending_fUSD_20260309
["ID","MTS","AMOUNT","RATE_DAILY","PERIOD"]
[408059846,1773087040750,-1213.0,0.000194,2]
[408059847,1773087040761,-163.21076423,0.00019425,2]
[408059848,1773087040772,-160.24329577,0.00019425,2]
[408059849,1773087040781,-160.24329577,0.00019425,2]
[408059850,1773087040790,-5978.80839268,0.00019439,2]
[408059851,1773087040800,-500.0,0.00019452,7]
[408059852,1773087040810,-1000.0,0.00019452,2]
[408059853,1773087040820,-416.0,0.0001946,2]
[408059854,1773087040830,-9172.05353867,0.00019465,2]
[408059855,1773087040839,-524.42981427,0.00019505,2]
[408059856,1773087040849,-1000.0,0.00019547,2]
[408059857,1773087040859,-181.08010149,0.00019547,2]
[408059858,1773087040868,-3744.44,0.00019587,2]
[408059859,1773087040877,-2083.81,0.00019587,2]
[408059860,1773087040887,-168.0,0.00019589,2]
[408059861,1773087040897,-557.0,0.00019591,2]
[408059862,1773087040906,-5089.67091391,0.00019591,2]
[408059863,1773087040915,-350.0,0.00019592,3]
[408059864,1773087040925,-5978.80839268,0.00019593,2]
[408059865,1773087040934,-999.87185437,0.000196,2]
[408059866,1773087040944,-9172.05353867,0.0001961,2]
[408059867,1773087040954,-163.21076423,0.00019616,2]
[408059868,1773087040964,-150.0,0.00019618,2]
[408059869,1773087040974,-150.0,0.00019618,2]
[408059870,1773087040984,-150.0,0.00019618,2]
[408059871,1773087040993,-150.0,0.00019618,2]
[408059872,1773087041003,-450.0,0.00019618,2]
[408059873,1773087041012,-518.0,0.00019618,2]
[408059874,1773087041022,-433.0,0.00019618,2]
[408059875,1773087041032,-150.0,0.00019618,2]
[408059876,1773087041041,-500.0,0.00019618,2]
[408059877,1773087041050,-500.0,0.00019618,2]
[408059878,1773087041060,-500.0,0.00019618,2]
[408059879,1773087041070,-150.0,0.00019618,2]
[408059880,1773087041079,-150.0,0.00019618,2]
[408059881,1773087041088,-150.0,0.00019673,2]
[408059882,1773087041098,-150.0,0.00019673,2]
[408059883,1773087041107,-450.0,0.00019673,2]
[408059884,1773087041117,-518.0,0.00019673,2]
[408059885,1773087041126,-433.0,0.00019673,2]
[408059886,1773087041135,-150.0,0.00019673,2]
[408059887,1773087041144,-500.0,0.00019673,2]
[408059888,1773087041154,-500.0,0.00019673,2]
[408059889,1773087041163,-500.0,0.00019673,2]
[408059890,1773087041173,-150.0,0.00019673,2]
[408059891,1773087041182,-150.0,0.00019673,2]
[408059892,1773087041191,-150.0,0.00019673,2]
[408059893,1773087041201,-2806.0,0.0001968,2]
[408059894,1773087041210,-160.0,0.0001968,2]
[408059895,1773087041219,-2806.0,0.0001968,2]
[408059896,1773087041229,-2000.0,0.000197,2]
[408059897,1773087041238,-524.42981427,0.00019703,2]
[408059898,1773087041247,-1000.0,0.00019726,2]
[408059899,1773087041256,-200.0,0.00019728,2]
[408059900,1773087041266,-200.0,0.00019728,2]
[408059901,1773087041275,-450.0,0.00019728,2]
[408059902,1773087041284,-518.0,0.00019728,2]
[408059903,1773087041294,-433.0,0.00019728,2]
[408059904,1773087041303,-200.0,0.00019728,2]
[408059905,1773087041313,-500.0,0.00019728,2]
[408059906,1773087041322,-500.0,0.00019728,2]
[408059907,1773087041332,-500.0,0.00019728,2]
[408059908,1773087041341,-200.0,0.00019728,2]
[408059909,1773087041350,-200.0,0.00019728,2]
[408059910,1773087041360,-150.0,0.00019728,2]
[408059911,1773087041369,-1000.0,0.00019729,2]
[408059912,1773087041378,-172.87392778,0.00019733,2]
[408059913,1773087041388,-160.0,0.00019733,2]
[408059914,1773087041397,-350.0,0.00019734,2]
[408059915,1773087041407,-1000.0,0.00019737,2]
[408059916,1773087041418,-1000.0,0.00019739,2]
[408059917,1773087041428,-150.0,0.00019746,2]
[408059918,1773087041438,-5978.80839268,0.00019746,2]
[408059919,1773087041447,-9172.05353867,0.00019755,2]
[408059920,1773087041458,-1000.0,0.00019767,2]
[408059921,1773087041467,-150.0,0.00019771,2]
[408059922,1773087041476,-1000.0,0.00019772,2]
[408059923,1773087041486,-179.0,0.00019774,2]
[408059924,1773087041498,-1000.0,0.00019777,2]
[408059925,1773087041508,-1000.0,0.00019779,2]
[408059926,1773087041517,-1000.0,0.00019781,2]
[408059927,1773087041526,-450.0,0.00019782,2]
[408059928,1773087041536,-518.0,0.00019782,2]
[408059929,1773087041545,-433.0,0.00019782,2]
[408059930,1773087041554,-500.0,0.00019782,2]
[408059931,1773087041563,-500.0,0.00019782,2]
[408059932,1773087041573,-200.0,0.00019783,2]
[408059933,1773087041582,-168.0,0.00019796,2]
[408059934,1773087041591,-2351.0,0.00019799,2]
[408059935,1773087041601,-2000.0,0.000198,2]
[408059936,1773087041610,-150.0,0.00019809,2]
[408059937,1773087041619,-1000.0,0.00019815,2]
[408059938,1773087041629,-150.0,0.00019815,2]
[408059939,1773087041638,-1000.0,0.00019822,2]
[408059940,1773087041647,-1000.0,0.00019822,2]
[408059941,1773087041656,-166.66,0.00019837,2]
[408059942,1773087041666,-450.0,0.00019837,2]
[408059943,1773087041675,-518.0,0.00019837,2]
[408059944,1773087041684,-433.0,0.00019837,2]
[408059945,1773087041693,-615.25102143,0.00019837,2]
[408059946,1773087041702,-402.46098408,0.00019837,2]
[408059947,1773087041713,-1000.0,0.00019838,2]
[408059948,1773087041722,-1000.0,0.00019838,2]
[408059949,1773087041732,-1000.0,0.00019839,2]
[408059950,1773087041741,-2000.0,0.0001985,2]
[408059951,1773087041750,-1000.0,0.00019852,2]
[408059952,1773087041760,-150.0,0.00019854,2]
[408059953,1773087041769,-1000.0,0.00019856,2]
[408059954,1773087041778,-1000.0,0.00019857,2]
[408059955,1773087041787,-500.0,0.0001986,2]
[408059956,1773087041797,-250.0,0.00019861,2]
[408059957,1773087041807,-1000.0,0.00019864,2]
[408059958,1773087041816,-151.0,0.00019867,2]
[408059959,1773087041825,-171.256,0.00019877,2]
[408059960,1773087041834,-2805.574,0.00019877,2]
[408059961,1773087041844,-1000.0,0.00019884,2]
[408059962,1773087041853,-150.0,0.00019884,2]
[408059963,1773087041863,-1000.0,0.00019886,2]
[408059964,1773087041872,-1000.0,0.00019886,2]
[408059965,1773087041882,-1000.0,0.00019889,2]
[408059966,1773087041891,-350.0,0.00019889,3]
[408059967,1773087041900,-5800.0,0.00019892,2]
[408059968,1773087041910,-450.0,0.00019892,2]
[408059969,1773087041919,-518.0,0.00019892,2]
[408059970,1773087041928,-433.0,0.00019892,2]
[408059971,1773087041938,-1000.0,0.00019899,2]
[408059972,1773087041947,-5800.0,0.000199,2]
[408059973,1773087041956,-151.0,0.000199,2]
[408059974,1773087041965,-3160.7594,0.000199,2]
[408059975,1773087041974,-2000.0,0.000199,2]
[408059976,1773087041983,-9172.05353867,0.000199,2]
[408059977,1773087041993,-5978.80839268,0.000199,2]
[408059978,1773087042002,-524.42981427,0.000199,2]
[408059979,1773087042011,-150.0,0.000199,2]
[408059980,1773087042020,-1744.43292007,0.000199,2]
[408059981,1773087042029,-939.76674134,0.000199,2]
[408059982,1773087042038,-2305.20397352,0.000199,2]
[408059983,1773087042047,-9444.94133315,0.000199,2]
[408059984,1773087042056,-4115.0,0.000199,2]
[408059985,1773087042065,-250.0,0.00019903,2]
[408059986,1773087042074,-338.47641343,0.00019905,2]
[408059987,1773087042083,-1000.0,0.00019906,2]
[408059988,1773087042092,-1000.0,0.00019914,2]
[408059989,1773087042102,-1000.0,0.00019919,2]
[408059990,1773087042111,-1000.0,0.00019926,2]
[408059991,1773087042120,-250.0,0.00019931,2]
[408059992,1773087042129,-664.0,0.00019932,2]
[408059993,1773087042139,-150.0,0.00019932,2]
[408059994,1773087042148,-150.0,0.00019932,2]
[408059995,1773087042157,-226.0,0.00019932,2]
[408059996,1773087042167,-151.0,0.00019933,2]
[408059997,1773087042176,-1106.41192988,0.00019933,2]
[408059998,1773087042185,-1000.0,0.00019935,2]
[408059999,1773087042194,-250.0,0.00019936,2]
[408060000,1773087042204,-1000.0,0.00019938,2]
[408060001,1773087042213,-167.67444217,0.0001994,2]
[408060002,1773087042222,-1000.0,0.00019942,2]
[408060003,1773087042231,-450.0,0.00019947,2]
[408060004,1773087042240,-518.0,0.00019947,2]
[408060005,1773087042249,-433.0,0.00019947,2]
[408060006,1773087042259,-2000.0,0.0001995,2]
[408060007,1773087042268,-1000.0,0.00019952,2]
[408060008,1773087042277,-250.0,0.00019963,2]
[408060009,1773087042286,-235.379,0.00019963,2]
[408060010,1773087042295,-222.675,0.00019963,2]
[408060011,1773087042306,-219.836,0.00019963,2]
[408060012,1773087042315,-161.49,0.00019963,2]
[408060013,1773087042324,-250.0,0.00019963,2]
[408060014,1773087042333,-150.139,0.00019963,2]
[408060015,1773087042342,-192.833,0.00019963,2]
[408060016,1773087042352,-165.46,0.00019963,2]
[408060017,1773087042361,-214.125,0.00019963,2]
[408060018,1773087042370,-250.0,0.00019963,2]
[408060020,1773087042380,-177.0,0.00019963,2]
[408060021,1773087042389,-236.839,0.00019963,2]
[408060022,1773087042398,-1342.0,0.00019963,2]
[408060023,1773087042408,-1042.0,0.00019963,2]
[408060024,1773087042422,-3505.0,0.00019963,2]
[408060025,1773087042431,-1279.0,0.00019963,2]
[408060026,1773087042441,-250.0,0.00019963,2]
[408060027,1773087042450,-151.0,0.00019967,2]
[408060028,1773087042462,-1000.0,0.00019968,2]
[408060029,1773087042471,-150.0,0.00019968,2]
[408060030,1773087042481,-400.0,0.0001997,2]
[408060031,1773087042492,-400.0,0.0001997,2]
[408060032,1773087042501,-400.0,0.0001997,2]
[408060033,1773087042512,-541.01514806,0.0001997,2]
[408060034,1773087042521,-500.0,0.00019973,2]
[408060035,1773087042531,-500.0,0.00019973,2]
[408060036,1773087042540,-500.0,0.00019973,2]
[408060037,1773087042549,-500.0,0.00019973,2]
[408060038,1773087042559,-1000.0,0.00019984,2]
[408060039,1773087042568,-787.17614024,0.00019987,2]
[408060040,1773087042578,-1000.0,0.00019988,2]
[408060041,1773087042587,-527.14664844,0.0001999,2]
[408060043,1773087042597,-527.14664844,0.0001999,2]
[408060044,1773087042607,-527.14664844,0.0001999,2]
[408060045,1773087042616,-151.0,0.00019997,2]
[408060046,1773087042625,-300.0,0.00019999,2]
[408060047,1773087042635,-300.0,0.00019999,2]
[408060048,1773087042644,-156.17,0.00019999,2]
[408060049,1773087042654,-196.74473727,0.00019999,2]
[408060050,1773087042664,-224.6572198,0.00019999,2]
[408060051,1773087042673,-381.48117681,0.00019999,2]
[408060052,1773087042682,-207.16558289,0.00019999,2]
[408060053,1773087042692,-3059.0,0.0002,2]
[408060054,1773087042701,-150.0,0.0002,3]
[408060055,1773087042710,-592650.88660031,0.0002,2]
[408060056,1773087042720,-4576.0528,0.0002,2]
[408060057,1773087042729,-4576.0528,0.0002,2]
[408060058,1773087042739,-4576.0528,0.0002,2]
[408060059,1773087042748,-4576.0528,0.0002,2]
[408060060,1773087042757,-4576.0528,0.0002,2]
[408060061,1773087042766,-4576.0528,0.0002,2]
[408060062,1773087042775,-4576.0528,0.0002,2]
[408060063,1773087042785,-4576.0528,0.0002,2]
[408060064,1773087042794,-4576.0528,0.0002,2]
[408060065,1773087042803,-4576.0528,0.0002,2]
[408060066,1773087042812,-4576.0528,0.0002,2]
[408060067,1773087042822,-4576.0528,0.0002,2]
[408060068,1773087042831,-4576.0528,0.0002,2]
[408060069,1773087042840,-4576.0528,0.0002,2]
[408060070,1773087042849,-4576.0528,0.0002,2]
[408060071,1773087042859,-4576.0528,0.0002,2]
[408060072,1773087042868,-4576.0528,0.0002,2]
[408060073,1773087042878,-4576.0528,0.0002,2]
[408060074,1773087042887,-4576.0528,0.0002,2]
[408060075,1773087042896,-4576.05399177,0.0002,2]
[408060076,1773087042906,-150.0,0.0002,2]
[408060077,1773087042915,-2053.2340308,0.0002,2]
[408060078,1773087042923,-150.0,0.0002,2]
[408060079,1773087042933,-30702.49363085,0.0002,2]
[408060080,1773087042943,-150.0,0.0002,2]
[408060081,1773087042953,-6554.39769923,0.0002,2]
[408060082,1773087042963,-423201.61400304,0.0002,2]
[408060083,1773087042972,-109312.16555342,0.0002,2]
[408060084,1773087042982,-851522.33491632,0.0002,2]
[408060085,1773087042999,-2784.03994496,0.0002,2]
[408060086,1773087043018,-4779.76509798,0.0002,2]
[408060096,1773087043366,-4669.31084997,0.0002,2]
[408060097,1773087043378,-1067.6817414,0.0002,2]
[408060098,1773087043450,-534.26111805,0.0002,2]
[408060099,1773087043503,-137409.99999998,0.0002,2]
[408060100,1773087043514,-571.37764203,0.0002,2]
[408060102,1773087045515,-849.0,0.0001851,2]
[408060103,1773087045622,-151.0,0.0001851,2]
[408060104,1773087045632,-449.0,0.0002,2]
[408060112,1773087460192,-250.0,0.00015,2]
[408060113,1773087460224,-500.0,0.00015,30]
[408060114,1773087460544,-463.40000001,0.00015,30]
[408060115,1773087460578,-250.0,0.00015,2]
[408060116,1773087461352,-250.0,0.00015,2]
[408060117,1773087461372,-50.0,0.00015,2]
[408060118,1773087461382,-450.0,0.000152,2]
[408060119,1773087461401,-50.0,0.000152,2]
[408060120,1773087461411,-250.0,0.00015629,2]
[408060132,1773088231647,-150.0,0.00015844,2]
[408060134,1773088231656,-500.0,0.00015844,2]
[408060136,1773088231666,-1109.0,0.00015944,2]
[408060138,1773088231675,-150.0,0.00016014,30]
[408060140,1773088231684,-3028.30156931,0.00016115,2]
[408060142,1773088231694,-1200.0,0.00016559,2]
[408060143,1773088231703,-151.0,0.0001656,2]
[408060144,1773088231712,-151.0,0.0001656,2]
[408060145,1773088231721,-151.0,0.0001656,2]
[408060146,1773088231731,-300.0,0.00016998,2]
[408060147,1773088231740,-1200.0,0.00016999,2]
[408060148,1773088231750,-300.0,0.00016999,2]
[408060149,1773088231760,-300.0,0.00016999,2]
[408060150,1773088231773,-300.0,0.00017,2]
[408060151,1773088231782,-503.0,0.00017,2]
[408060152,1773088231791,-176.06078434,0.00017357,2]
[408060153,1773088231800,-1935.0,0.00017408,2]
[408060154,1773088231810,-300.0,0.00017429,2]
[408060155,1773088231819,-277.71987509,0.00017442,2]
[408060156,1773088231828,-550.0,0.00017537,2]
[408060157,1773088231839,-321.9,0.00017538,2]
[408060158,1773088231848,-250.0,0.00017538,2]
[408060159,1773088231857,-6031.74668512,0.00017623,2]
[408060160,1773088231867,-999.99,0.00017728,2]
[408060161,1773088231876,-4472.7,0.00017728,2]
[408060162,1773088231885,-299.99,0.00017728,4]
[408060163,1773088231894,-500.0,0.00017796,2]
[408060164,1773088231903,-500.0,0.00017796,2]
[408060165,1773088231913,-500.0,0.00017796,2]
[408060166,1773088231922,-500.0,0.00017796,2]
[408060167,1773088231932,-500.0,0.00017796,2]
[408060168,1773088231941,-500.0,0.00017796,2]
[408060169,1773088231950,-500.0,0.00017796,2]
[408060170,1773088231960,-500.0,0.00017796,2]
[408060171,1773088231968,-500.0,0.00017796,2]
[408060172,1773088231977,-500.0,0.00017796,2]
[408060173,1773088231986,-200.0,0.00017796,2]
[408060174,1773088231996,-500.0,0.00017796,2]
[408060175,1773088232005,-500.0,0.00017796,2]
[408060176,1773088232014,-500.0,0.00017796,2]
[408060177,1773088232023,-500.0,0.00017796,2]
[408060178,1773088232033,-151.0,0.00017796,2]
[408060179,1773088232042,-500.0,0.00017796,2]
[408060180,1773088232051,-151.0,0.00017796,2]
[408060181,1773088232061,-500.0,0.00017796,2]
[408060182,1773088232071,-151.0,0.00017796,2]
[408060183,1773088232081,-500.0,0.00017796,2]
[408060184,1773088232091,-151.0,0.00017796,2]
[408060185,1773088232101,-500.0,0.00017796,2]
[408060186,1773088232110,-151.0,0.00017796,2]
[408060187,1773088232120,-500.0,0.00017796,2]
[408060188,1773088232133,-500.0,0.00017796,2]
[408060189,1773088232142,-500.0,0.00017796,2]
[408060190,1773088232151,-500.0,0.00017796,2]
[408060191,1773088232161,-500.0,0.00017796,2]
[408060192,1773088232170,-500.0,0.00017796,2]
[408060193,1773088232180,-151.0,0.00017796,2]
[408060194,1773088232189,-151.0,0.00017796,2]
[408060195,1773088232199,-151.0,0.00017796,2]
[408060196,1773088232208,-234.76486537,0.00017796,2]
[408060197,1773088232218,-2000.0,0.00017807,2]
[408060198,1773088232227,-1500.0,0.00017807,2]
[408060199,1773088232236,-1852.42,0.00017807,2]
[408060200,1773088232246,-584.77,0.00017807,2]
[408060201,1773088232255,-4242.07,0.00017807,2]
[408060202,1773088232264,-3240.0,0.00017807,2]
[408060203,1773088232274,-500.0,0.00017807,2]
[408060204,1773088232283,-1600.0,0.00017807,2]
[408060205,1773088232292,-5104.13,0.00017807,2]
[408060206,1773088232302,-9999.99,0.00017808,2]
[408060207,1773088232311,-800.0,0.00017808,2]
[408060208,1773088232320,-321.9,0.00017812,2]
[408060209,1773088232330,-150.0,0.00017904,2]
[408060210,1773088232339,-199.25,0.00018,4]
[408060211,1773088232348,-200.614972,0.00018,2]
[408060212,1773088232358,-183.71,0.00018005,3]
[408060213,1773088232367,-500.0,0.0001807,2]
[408060214,1773088232377,-321.90805037,0.00018086,2]
[408060215,1773088232387,-909.0,0.00018185,2]
[408060216,1773088232396,-300.377134,0.00018256,2]
[408060217,1773088232405,-300.37713398,0.00018311,2]
[408060218,1773088232416,-500.0,0.00018344,2]
[408060219,1773088232426,-200.0,0.00018344,2]
[408060220,1773088232437,-500.0,0.00018356,7]
[408060221,1773088232446,-500.0,0.00018356,7]
[408060222,1773088232456,-500.0,0.00018356,7]
[408060223,1773088232465,-18779.22,0.00018356,2]
[408060224,1773088232475,-300.37713398,0.00018366,2]
[408060225,1773088232484,-300.37713398,0.00018421,2]
[408060226,1773088232493,-1000.0,0.0001851,2]
[408060227,1773088232503,-234.0,0.00018566,2]
[408060228,1773088232512,-1121.0,0.00018567,2]
[408060229,1773088232521,-420.0,0.00018567,2]
[408060230,1773088232533,-300.0,0.00018567,2]
[408060231,1773088232542,-500.0,0.00018609,2]
[408060232,1773088232551,-500.0,0.00018609,2]
[408060233,1773088232560,-500.0,0.00018609,2]
[408060234,1773088232570,-500.0,0.00018609,2]
[408060235,1773088232581,-500.0,0.00018609,2]
[408060236,1773088232590,-500.0,0.00018618,2]
[408060237,1773088232600,-935.0,0.00018625,2]
[408060238,1773088232609,-3823.62,0.00018696,2]
[408060239,1773088232619,-229.0,0.00018859,2]
[408060240,1773088232628,-4092.1343,0.00018899,2]
[408060241,1773088232638,-288.67580439,0.00018904,2]
[408060242,1773088232647,-503.0,0.00018969,3]
[408060243,1773088232657,-1000.0,0.00018999,2]
[408060244,1773088232666,-250.0,0.00018999,2]
[408060245,1773088232676,-578.20924308,0.00018999,2]
[408060246,1773088232686,-174.61919141,0.00018999,2]
[408060247,1773088232695,-7248.45646731,0.00018999,2]
[408060248,1773088232704,-1500.0,0.00018999,2]
[408060249,1773088232713,-1500.0,0.00018999,2]
[408060250,1773088232723,-1500.0,0.00018999,2]
[408060251,1773088232732,-693.3919763,0.00018999,2]
[408060252,1773088232742,-1000.0,0.00018999,2]
[408060253,1773088232752,-200.0,0.00018999,2]
[408060254,1773088232761,-404.69161307,0.00018999,2]
[408060255,1773088232773,-161.56516808,0.00019014,2]
[408060256,1773088232783,-3823.62,0.00019098,2]
[408060257,1773088232792,-500.0,0.00019098,2]
[408060258,1773088232801,-697.36,0.00019178,2]
[408060259,1773088232811,-728.46667369,0.00019178,2]
[408060260,1773088232827,-271.53332631,0.00019178,2]
[408060261,1773088232837,-161.56516808,0.00019205,2]
[408060262,1773088232847,-168.0,0.00019328,2]
[408060263,1773088232856,-484.74405259,0.00019338,2]
[408060264,1773088232868,-765.5077029,0.00019338,2]
[408060265,1773088232879,-2573.36824451,0.00019338,2]
[408060266,1773088232889,-161.56516808,0.00019425,2]
[408060267,1773088232903,-178.85741597,0.00019425,2]
[408060268,1773088232913,-160.24329577,0.00019425,2]
[408060269,1773088232922,-500.0,0.00019452,7]
[408060270,1773088232932,-1000.0,0.00019452,2]
[408060271,1773088232941,-1000.0,0.00019547,2]
[408060272,1773088232951,-181.08010149,0.00019547,2]
[408060273,1773088232960,-1395.53011918,0.0001959,2]
[408060274,1773088232972,-1037.25,0.0001959,2]
[408060275,1773088232983,-273.719,0.0001959,2]
[408060276,1773088233018,-10145.84683209,0.0001959,2]
[408060277,1773088233028,-2729.55164584,0.0001959,2]
[408060278,1773088233037,-8679.64062478,0.0001959,2]
[408060279,1773088233048,-2057.45248293,0.0001959,2]
[408060280,1773088233058,-364.68,0.000196,3]
[408060281,1773088233068,-1297.14787534,0.000196,2]
[408060282,1773088233078,-161.56516808,0.00019616,2]
[408060283,1773088233088,-168.0,0.00019652,2]
[408060284,1773088233097,-485.0,0.0001967,5]
[408060285,1773088233107,-500.0,0.00019672,2]
[408060286,1773088233117,-500.0,0.00019672,2]
[408060287,1773088233126,-500.0,0.00019672,2]
[408060288,1773088233136,-500.0,0.00019672,2]
[408060289,1773088233145,-500.0,0.00019672,2]
[408060290,1773088233155,-500.0,0.00019672,2]
[408060291,1773088233163,-500.0,0.00019672,2]
[408060292,1773088233172,-500.0,0.00019672,2]
[408060293,1773088233182,-500.0,0.00019672,2]
[408060294,1773088233191,-500.0,0.00019672,2]
[408060295,1773088233200,-500.0,0.00019672,2]
[408060296,1773088233210,-500.0,0.00019672,2]
[408060297,1773088233220,-500.0,0.00019672,2]
[408060298,1773088233229,-500.0,0.00019672,2]
[408060299,1773088233238,-500.0,0.00019672,2]
[408060300,1773088233248,-500.0,0.00019672,2]
[408060301,1773088233257,-500.0,0.00019672,2]
[408060302,1773088233267,-500.0,0.00019672,2]
[408060303,1773088233276,-500.0,0.00019672,2]
[408060304,1773088233285,-500.0,0.00019672,2]
[408060305,1773088233295,-158.89395243,0.00019672,2]
[408060306,1773088233304,-150.0,0.00019673,2]
[408060307,1773088233314,-150.0,0.00019673,2]
[408060308,1773088233323,-150.0,0.00019673,2]
[408060309,1773088233333,-498.0,0.00019673,2]
[408060310,1773088233343,-500.0,0.00019673,2]
[408060311,1773088233352,-150.0,0.00019673,2]
[408060312,1773088233362,-500.0,0.00019673,2]
[408060313,1773088233372,-500.0,0.00019673,2]
[408060314,1773088233382,-500.0,0.00019673,2]
[408060315,1773088233391,-150.0,0.00019673,2]
[408060316,1773088233400,-500.0,0.00019673,2]
[408060317,1773088233409,-500.0,0.00019673,2]
[408060318,1773088233419,-250.0,0.00019673,2]
[408060319,1773088233428,-500.0,0.00019673,2]
[408060320,1773088233438,-2806.0,0.0001968,2]
[408060321,1773088233448,-2000.0,0.000197,2]
[408060322,1773088233456,-2500.0,0.000197,2]
[408060323,1773088233466,-1000.0,0.00019726,2]
[408060324,1773088233475,-168.0,0.00019727,2]
[408060325,1773088233484,-150.0,0.00019728,2]
[408060326,1773088233494,-150.0,0.00019728,2]
[408060327,1773088233503,-500.0,0.00019728,2]
[408060328,1773088233514,-498.0,0.00019728,2]
[408060329,1773088233523,-150.0,0.00019728,2]
[408060330,1773088233533,-500.0,0.00019728,2]
[408060331,1773088233542,-500.0,0.00019728,2]
[408060332,1773088233552,-500.0,0.00019728,2]
[408060333,1773088233562,-150.0,0.00019728,2]
[408060334,1773088233572,-500.0,0.00019728,2]
[408060335,1773088233582,-500.0,0.00019728,2]
[408060336,1773088233592,-500.0,0.00019728,2]
[408060337,1773088233601,-1000.0,0.00019733,2]
[408060338,1773088233610,-150.0,0.0001974,2]
[408060339,1773088233621,-1000.0,0.00019745,2]
[408060340,1773088233631,-1000.0,0.00019752,2]
[408060341,1773088233640,-1000.0,0.00019758,2]
[408060342,1773088233650,-1000.0,0.00019763,2]
[408060343,1773088233661,-150.0,0.00019781,2]
[408060344,1773088233671,-150.0,0.00019783,2]
[408060345,1773088233681,-200.0,0.00019783,2]
[408060346,1773088233690,-264.04850966,0.00019783,2]
[408060347,1773088233701,-498.0,0.00019783,2]
[408060348,1773088233710,-200.0,0.00019783,2]
[408060349,1773088233720,-500.0,0.00019783,2]
[408060350,1773088233729,-500.0,0.00019783,2]
[408060351,1773088233738,-500.0,0.00019783,2]
[408060352,1773088233747,-500.0,0.00019783,2]
[408060353,1773088233757,-500.0,0.00019783,2]
[408060354,1773088233770,-500.0,0.00019783,2]
[408060355,1773088233780,-150.0,0.00019786,2]
[408060356,1773088233789,-1000.0,0.0001979,2]
[408060357,1773088233798,-1000.0,0.00019795,2]
[408060358,1773088233809,-1838.17869474,0.000198,2]
[408060359,1773088234027,-149.65082526,0.000198,2]
[408060360,1773088234077,-1987.82952,0.000198,2]
[408060361,1773088234087,-1516.28446177,0.000198,2]
[408060362,1773088234098,-403.45144436,0.000198,2]
[408060363,1773088234107,-430.88895014,0.00019806,2]
[408060364,1773088234119,-569.11104986,0.00019806,2]
[408060365,1773088234128,-150.0,0.0001981,2]
[408060366,1773088234138,-150.0,0.00019811,2]
[408060367,1773088234148,-91.75951273,0.00019814,2]
[408060368,1773088234160,-1827.97639338,0.00019814,2]
[408060369,1773088234170,-1000.0,0.00019816,2]
[408060370,1773088234180,-493.26,0.00019817,2]
[408060371,1773088234189,-493.26,0.00019817,2]
[408060372,1773088234199,-493.26,0.00019817,2]
[408060373,1773088234208,-493.26,0.00019817,2]
[408060374,1773088234218,-493.26,0.00019817,2]
[408060375,1773088234228,-493.26,0.00019817,2]
[408060376,1773088234237,-493.26,0.00019817,2]
[408060377,1773088234247,-493.26,0.00019817,2]
[408060378,1773088234257,-493.26,0.00019817,2]
[408060379,1773088234266,-493.26,0.00019817,2]
[408060380,1773088234276,-493.26,0.00019817,2]